[Event "Late-Titled-Tuesday-Blitz-April-23-2024"]
[Site "Chess.com"]
[Date "2024.04.23"]
[Round "4"]
[White "Cambek64"]
[Black "N_I_Chess"]
[Result "0-1"]
[WhiteElo "2518"]
[BlackElo "2382"]
[TimeControl "180+1"]
[EndTime "14:41:44 PDT"]
[Termination "N_I_Chess won on time"]

1. d4 {[%clk 0:01:28.6]} 1... Nf6 {[%clk 0:03:00.9]} 2. c3 {[%clk 0:01:27.2]}
2... d5 {[%clk 0:03:00.5]} 3. Bf4 {[%clk 0:01:26.8]} 3... c5 {[%clk 0:02:59.8]}
4. e3 {[%clk 0:01:27.2]} 4... Nc6 {[%clk 0:02:59.7]} 5. Nf3 {[%clk 0:01:26.7]}
5... e6 {[%clk 0:02:58.7]} 6. Nbd2 {[%clk 0:01:24.6]} 6... Bd6 {[%clk
0:02:55.7]} 7. Bxd6 {[%clk 0:01:24.6]} 7... Qxd6 {[%clk 0:02:55.7]} 8. Bb5
{[%clk 0:01:25.3]} 8... O-O {[%clk 0:02:53.8]} 9. O-O {[%clk 0:01:24.7]} 9... a6
{[%clk 0:02:26.9]} 10. Bxc6 {[%clk 0:01:23.9]} 10... bxc6 {[%clk 0:02:26.9]} 11.
Qa4 {[%clk 0:01:21.9]} 11... cxd4 {[%clk 0:02:23.1]} 12. cxd4 {[%clk 0:01:20.8]}
12... c5 {[%clk 0:02:21.4]} 13. Qa3 {[%clk 0:01:20]} 13... Nd7 {[%clk
0:02:13.2]} 14. Nb3 {[%clk 0:01:19]} 14... Rb8 {[%clk 0:02:05.1]} 15. Rac1
{[%clk 0:01:16.6]} 15... e5 {[%clk 0:01:56.7]} 16. Nxc5 {[%clk 0:01:14.6]} 16...
exd4 {[%clk 0:01:51]} 17. Nxd4 {[%clk 0:01:02.6]} 17... Ne5 {[%clk 0:01:33.1]}
18. b3 {[%clk 0:00:45]} 18... Qg6 {[%clk 0:01:28.2]} 19. Kh1 {[%clk 0:00:42.8]}
19... Ng4 {[%clk 0:01:21.7]} 20. Nf3 {[%clk 0:00:37.3]} 20... Bf5 {[%clk
0:01:13.2]} 21. Qb2 {[%clk 0:00:35.8]} 21... Rfe8 {[%clk 0:01:02.5]} 22. Qd4
{[%clk 0:00:35.4]} 22... Be4 {[%clk 0:01:00.2]} 23. Nxe4 {[%clk 0:00:32.3]}
23... dxe4 {[%clk 0:01:00.2]} 24. Ng1 {[%clk 0:00:26.9]} 24... Qh5 {[%clk
0:00:55]} 25. h3 {[%clk 0:00:20.4]} 25... Qh4 {[%clk 0:00:53.5]} 26. g3 {[%clk
0:00:20.5]} 26... Qh6 {[%clk 0:00:41.7]} 27. Kg2 {[%clk 0:00:20.8]} 27... Nxe3+
{[%clk 0:00:31.5]} 28. Qxe3 {[%clk 0:00:19.8]} 28... Qg6 {[%clk 0:00:30.6]} 29.
Rfd1 {[%clk 0:00:19.2]} 29... h6 {[%clk 0:00:30.3]} 30. Rd4 {[%clk 0:00:18.2]}
30... Re6 {[%clk 0:00:29.2]} 31. Rcc4 {[%clk 0:00:18.6]} 31... Rbe8 {[%clk
0:00:29.4]} 32. Ne2 {[%clk 0:00:18.8]} 32... Re5 {[%clk 0:00:29]} 33. h4 {[%clk
0:00:18.6]} 33... Qe6 {[%clk 0:00:28.8]} 34. Nf4 {[%clk 0:00:18.6]} 34... Qe7
{[%clk 0:00:27.3]} 35. h5 {[%clk 0:00:18.7]} 35... a5 {[%clk 0:00:24.5]} 36. a3
{[%clk 0:00:18.5]} 36... Qxa3 {[%clk 0:00:23.9]} 37. b4 {[%clk 0:00:16.1]} 37...
axb4 {[%clk 0:00:23.1]} 38. Qxa3 {[%clk 0:00:14.4]} 38... bxa3 {[%clk
0:00:23.1]} 39. Ra4 {[%clk 0:00:14.4]} 39... e3 {[%clk 0:00:23.7]} 40. fxe3
{[%clk 0:00:12.4]} 40... Rxe3 {[%clk 0:00:24.6]} 41. Rd2 {[%clk 0:00:12.3]}
41... Rb8 {[%clk 0:00:24.2]} 42. Ra2 {[%clk 0:00:11.4]} 42... Rbb3 {[%clk
0:00:24.4]} 43. Kf2 {[%clk 0:00:10]} 43... Rf3+ {[%clk 0:00:23.5]} 44. Kg2
{[%clk 0:00:07.8]} 44... Rxg3+ {[%clk 0:00:24]} 45. Kh2 {[%clk 0:00:08.5]} 45...
Rgf3 {[%clk 0:00:24.2]} 46. Ng2 {[%clk 0:00:08.9]} 46... Kh7 {[%clk 0:00:23.4]}
47. Rf4 {[%clk 0:00:08.4]} 47... Rh3+ {[%clk 0:00:23.8]} 48. Kg1 {[%clk
0:00:07.8]} 48... Rxh5 {[%clk 0:00:24.7]} 49. Kf2 {[%clk 0:00:07.8]} 49... Rhb5
{[%clk 0:00:21.5]} 50. Kg1 {[%clk 0:00:05.6]} 50... Rb1+ {[%clk 0:00:21]} 51.
Kh2 {[%clk 0:00:04.9]} 51... R1b3 {[%clk 0:00:20.7]} 52. Rff2 {[%clk 0:00:04.1]}
52... Rh5+ {[%clk 0:00:20.2]} 53. Kg1 {[%clk 0:00:03.4]} 53... f6 {[%clk
0:00:20.6]} 54. Ne1 {[%clk 0:00:02.6]} 54... Rb1 {[%clk 0:00:18.6]} 55. Rfe2
{[%clk 0:00:01.1]} 55... Rh3 {[%clk 0:00:16.8]} 56. Kg2 {[%clk 0:00:01.2]} 56...
Rc3 {[%clk 0:00:16.4]} 57. Nc2 {[%clk 0:00:01]} 57... Rb2 {[%clk 0:00:15.7]} 0-1

[Event "Late-Titled-Tuesday-Blitz-April-23-2024"]
[Site "Chess.com"]
[Date "2024.04.23"]
[Round "4"]
[White "Zura_19"]
[Black "MyDream003"]
[Result "1-0"]
[WhiteElo "2602"]
[BlackElo "2825"]
[TimeControl "180+1"]
[EndTime "14:41:55 PDT"]
[Termination "Zura_19 won by resignation"]

1. d4 {[%clk 0:02:59]} 1... Nf6 {[%clk 0:02:48.8]} 2. Nf3 {[%clk 0:02:59.1]}
2... g6 {[%clk 0:02:48.7]} 3. Bf4 {[%clk 0:02:57.3]} 3... Bg7 {[%clk 0:02:48.9]}
4. Nbd2 {[%clk 0:02:55.6]} 4... d6 {[%clk 0:02:47.8]} 5. e4 {[%clk 0:02:55.5]}
5... O-O {[%clk 0:02:44.9]} 6. Be2 {[%clk 0:02:55.1]} 6... Nc6 {[%clk
0:02:43.9]} 7. c3 {[%clk 0:02:54.9]} 7... Nd7 {[%clk 0:02:23.8]} 8. O-O {[%clk
0:02:20]} 8... e5 {[%clk 0:02:23.8]} 9. Be3 {[%clk 0:02:15.9]} 9... h6 {[%clk
0:02:19.1]} 10. d5 {[%clk 0:01:54.6]} 10... Ne7 {[%clk 0:02:16.8]} 11. Ne1
{[%clk 0:01:54.7]} 11... f5 {[%clk 0:02:14.5]} 12. f3 {[%clk 0:01:47.6]} 12...
f4 {[%clk 0:02:02.3]} 13. Bf2 {[%clk 0:01:48]} 13... g5 {[%clk 0:02:02.6]} 14.
c4 {[%clk 0:01:48.6]} 14... a5 {[%clk 0:02:00.2]} 15. Nd3 {[%clk 0:01:46.5]}
15... b6 {[%clk 0:02:00.1]} 16. b3 {[%clk 0:01:40.9]} 16... h5 {[%clk
0:01:53.1]} 17. a3 {[%clk 0:01:40.5]} 17... Nf6 {[%clk 0:01:44.8]} 18. b4 {[%clk
0:01:35.1]} 18... g4 {[%clk 0:01:42]} 19. Bh4 {[%clk 0:01:33.7]} 19... Ng6
{[%clk 0:01:36.6]} 20. Bxf6 {[%clk 0:01:32.7]} 20... Rxf6 {[%clk 0:01:26.2]} 21.
fxg4 {[%clk 0:01:33.2]} 21... axb4 {[%clk 0:01:17.5]} 22. gxh5 {[%clk 0:01:22]}
22... Nh4 {[%clk 0:01:15.8]} 23. axb4 {[%clk 0:01:15.4]} 23... Rxa1 {[%clk
0:01:06.4]} 24. Qxa1 {[%clk 0:01:16.3]} 24... Rh6 {[%clk 0:01:04.6]} 25. Qa8
{[%clk 0:01:12.8]} 25... Nxg2 {[%clk 0:01:03.7]} 26. Bg4 {[%clk 0:01:07.3]}
26... Ne3 {[%clk 0:01:00]} 27. Qxc8 {[%clk 0:00:58.6]} 27... Qxc8 {[%clk
0:01:00.4]} 28. Bxc8 {[%clk 0:00:59.1]} 28... Nxf1 {[%clk 0:01:01]} 29. Kxf1
{[%clk 0:00:57.5]} 29... Rxh5 {[%clk 0:01:01.2]} 30. Nf3 {[%clk 0:00:57.3]}
30... Bf6 {[%clk 0:00:58.8]} 31. c5 {[%clk 0:00:54.7]} 31... Kf7 {[%clk
0:00:55.1]} 32. cxd6 {[%clk 0:00:47.6]} 32... cxd6 {[%clk 0:00:56]} 33. Nb2
{[%clk 0:00:41.3]} 33... Rh8 {[%clk 0:00:51.3]} 34. Bb7 {[%clk 0:00:34.6]} 34...
Ke7 {[%clk 0:00:50.2]} 35. Nc4 {[%clk 0:00:33.1]} 35... Kd7 {[%clk 0:00:45.9]}
36. Bc6+ {[%clk 0:00:29]} 36... Kc7 {[%clk 0:00:46.4]} 37. Nb2 {[%clk
0:00:21.5]} 37... Be7 {[%clk 0:00:33.1]} 38. Nd3 {[%clk 0:00:19.9]} 38... Rg8
{[%clk 0:00:31.8]} 39. Nf2 {[%clk 0:00:18.9]} 39... Rh8 {[%clk 0:00:29.9]} 40.
h3 {[%clk 0:00:16.1]} 40... Rh7 {[%clk 0:00:29.7]} 41. Kg2 {[%clk 0:00:15.9]}
41... Rh8 {[%clk 0:00:30.3]} 42. Ng4 {[%clk 0:00:14.3]} 42... Rh7 {[%clk
0:00:30.8]} 43. Nf2 {[%clk 0:00:09.2]} 43... Kb8 {[%clk 0:00:31]} 44. Kf1 {[%clk
0:00:09.4]} 44... Bd8 {[%clk 0:00:30.6]} 45. Ke2 {[%clk 0:00:08]} 45... Rg7
{[%clk 0:00:29.2]} 46. Ng4 {[%clk 0:00:07.1]} 46... Rh7 {[%clk 0:00:29.3]} 47.
Nf2 {[%clk 0:00:05.8]} 47... Rg7 {[%clk 0:00:29.6]} 48. Ng4 {[%clk 0:00:05.1]}
48... Ra7 {[%clk 0:00:29]} 49. Kd3 {[%clk 0:00:04.4]} 49... Ra3+ {[%clk
0:00:29.2]} 50. Ke2 {[%clk 0:00:03.8]} 50... Ra2+ {[%clk 0:00:29.8]} 51. Kf1
{[%clk 0:00:04.2]} 51... Rb2 {[%clk 0:00:29.1]} 52. b5 {[%clk 0:00:04.7]} 52...
Rb3 {[%clk 0:00:28.9]} 53. Kg2 {[%clk 0:00:04.6]} 53... Kc7 {[%clk 0:00:28.5]}
54. h4 {[%clk 0:00:04.4]} 54... Rb2+ {[%clk 0:00:28.8]} 55. Nf2 {[%clk
0:00:04.4]} 55... Ra2 {[%clk 0:00:26.3]} 56. h5 {[%clk 0:00:05]} 56... Bf6
{[%clk 0:00:26.2]} 57. h6 {[%clk 0:00:05.4]} 57... Kd8 {[%clk 0:00:23.7]} 58. h7
{[%clk 0:00:05.5]} 58... Ra7 {[%clk 0:00:23.8]} 59. Ng4 {[%clk 0:00:04.7]} 59...
Rg7 {[%clk 0:00:23.1]} 60. h8=Q+ {[%clk 0:00:04.3]} 60... Kc7 {[%clk 0:00:21.8]}
61. Qa8 {[%clk 0:00:04.4]} 61... Rxg4+ {[%clk 0:00:21.8]} 62. Kf1 {[%clk
0:00:04.8]} 1-0

[Event "Late-Titled-Tuesday-Blitz-April-23-2024"]
[Site "Chess.com"]
[Date "2024.04.23"]
[Round "4"]
[White "carokannlover213"]
[Black "OPQRC"]
[Result "1/2-1/2"]
[WhiteElo "2781"]
[BlackElo "2580"]
[TimeControl "180+1"]
[EndTime "14:41:59 PDT"]
[Termination "Game drawn - insufficient material"]

1. e4 {[%clk 0:03:00.9]} 1... c5 {[%clk 0:02:59.9]} 2. Nf3 {[%clk 0:03:00.2]}
2... Nc6 {[%clk 0:02:59.4]} 3. d4 {[%clk 0:02:58.6]} 3... cxd4 {[%clk
0:03:00.3]} 4. Nxd4 {[%clk 0:02:59.1]} 4... Nf6 {[%clk 0:03:00.8]} 5. Nc3 {[%clk
0:02:59.3]} 5... e6 {[%clk 0:03:01.1]} 6. Nxc6 {[%clk 0:02:58.7]} 6... bxc6
{[%clk 0:03:01.7]} 7. e5 {[%clk 0:02:59.3]} 7... Nd5 {[%clk 0:03:02.2]} 8. Ne4
{[%clk 0:03:00]} 8... Bb7 {[%clk 0:03:02.7]} 9. Be2 {[%clk 0:03:00.4]} 9... c5
{[%clk 0:03:02.4]} 10. O-O {[%clk 0:03:00.8]} 10... Qc7 {[%clk 0:03:02]} 11.
Nd6+ {[%clk 0:03:01.4]} 11... Bxd6 {[%clk 0:03:00.3]} 12. exd6 {[%clk
0:03:02.3]} 12... Qc6 {[%clk 0:02:59.2]} 13. f3 {[%clk 0:03:02.5]} 13... c4
{[%clk 0:02:57.5]} 14. Qd4 {[%clk 0:03:02.4]} 14... O-O {[%clk 0:02:51.4]} 15.
Bxc4 {[%clk 0:03:02.3]} 15... Qxd6 {[%clk 0:02:47.7]} 16. b3 {[%clk 0:03:02.2]}
16... Qb6 {[%clk 0:02:43.1]} 17. Qxb6 {[%clk 0:03:01.9]} 17... Nxb6 {[%clk
0:02:40.4]} 18. Bd3 {[%clk 0:03:02]} 18... Nd5 {[%clk 0:02:33.3]} 19. Bd2 {[%clk
0:03:02.2]} 19... a5 {[%clk 0:02:31.6]} 20. a3 {[%clk 0:02:42.3]} 20... Rfc8
{[%clk 0:02:25.4]} 21. c4 {[%clk 0:02:41.5]} 21... Ne7 {[%clk 0:02:17]} 22. b4
{[%clk 0:02:17.8]} 22... Nc6 {[%clk 0:01:59]} 23. Bc3 {[%clk 0:02:06.4]} 23...
f6 {[%clk 0:01:37.2]} 24. f4 {[%clk 0:02:00.2]} 24... d5 {[%clk 0:01:22]} 25. c5
{[%clk 0:01:39.8]} 25... d4 {[%clk 0:01:20.4]} 26. Bd2 {[%clk 0:01:39]} 26...
Ne7 {[%clk 0:01:15.3]} 27. Rfe1 {[%clk 0:01:34.8]} 27... Kf7 {[%clk 0:01:14.8]}
28. Rac1 {[%clk 0:01:29.8]} 28... axb4 {[%clk 0:01:11.2]} 29. axb4 {[%clk
0:01:30.7]} 29... Ra2 {[%clk 0:01:08.5]} 30. Re2 {[%clk 0:01:23.4]} 30... Bd5
{[%clk 0:01:08.6]} 31. b5 {[%clk 0:01:19.8]} 31... Rb2 {[%clk 0:01:04.1]} 32. c6
{[%clk 0:01:07.9]} 32... Ra8 {[%clk 0:00:58.8]} 33. Rb1 {[%clk 0:00:26]} 33...
Raa2 {[%clk 0:00:39.6]} 34. Rxb2 {[%clk 0:00:22.3]} 34... Rxb2 {[%clk
0:00:40.5]} 35. Be1 {[%clk 0:00:16.3]} 35... Rb3 {[%clk 0:00:33.8]} 36. Rd2
{[%clk 0:00:10.7]} 36... Nc8 {[%clk 0:00:33.6]} 37. h4 {[%clk 0:00:07.3]} 37...
Na7 {[%clk 0:00:28]} 38. c7 {[%clk 0:00:07.2]} 38... Ke7 {[%clk 0:00:24.8]} 39.
Ra2 {[%clk 0:00:05.7]} 39... Nc8 {[%clk 0:00:20.2]} 40. Rd2 {[%clk 0:00:05.1]}
40... Kd7 {[%clk 0:00:19.8]} 41. Bxh7 {[%clk 0:00:04.1]} 41... Kxc7 {[%clk
0:00:19.5]} 42. Rxd4 {[%clk 0:00:04.6]} 42... Nd6 {[%clk 0:00:18]} 43. Bd3
{[%clk 0:00:03.5]} 43... Nxb5 {[%clk 0:00:16.3]} 44. Ba5+ {[%clk 0:00:04]} 44...
Kc6 {[%clk 0:00:14.1]} 45. Bxb5+ {[%clk 0:00:04.5]} 45... Rxb5 {[%clk
0:00:14.3]} 46. Bd2 {[%clk 0:00:02.4]} 46... Rb2 {[%clk 0:00:14.4]} 47. f5
{[%clk 0:00:01.9]} 47... exf5 {[%clk 0:00:13.1]} 48. Rd3 {[%clk 0:00:01.8]}
48... Rc2 {[%clk 0:00:12.6]} 49. Rc3+ {[%clk 0:00:01.8]} 49... Rxc3 {[%clk
0:00:12.8]} 50. Bxc3 {[%clk 0:00:02.7]} 50... Kd7 {[%clk 0:00:11.6]} 51. g3
{[%clk 0:00:03]} 51... Ke8 {[%clk 0:00:11.9]} 52. Kf2 {[%clk 0:00:03.6]} 52...
Kf7 {[%clk 0:00:12.4]} 53. Bd2 {[%clk 0:00:04.2]} 53... Kg6 {[%clk 0:00:12.5]}
54. Bc1 {[%clk 0:00:05.1]} 54... Kh5 {[%clk 0:00:12.6]} 55. Bd2 {[%clk 0:00:06]}
55... Kg4 {[%clk 0:00:12.8]} 56. Bc3 {[%clk 0:00:06.7]} 56... f4 {[%clk
0:00:10.4]} 57. gxf4 {[%clk 0:00:06.9]} 57... Kxf4 {[%clk 0:00:10.4]} 58. Ba5
{[%clk 0:00:04.3]} 58... Kg4 {[%clk 0:00:10.1]} 59. Bb4 {[%clk 0:00:03.6]} 59...
Kxh4 {[%clk 0:00:09.8]} 60. Bf8 {[%clk 0:00:04.3]} 60... g6 {[%clk 0:00:09.2]}
61. Be7 {[%clk 0:00:04.6]} 61... Kg5 {[%clk 0:00:10]} 62. Kg3 {[%clk 0:00:05]}
62... Kf5 {[%clk 0:00:10.4]} 63. Kh4 {[%clk 0:00:05.6]} 63... g5+ {[%clk
0:00:10.5]} 64. Kg3 {[%clk 0:00:05.7]} 64... Kg6 {[%clk 0:00:10.6]} 65. Bb4
{[%clk 0:00:06.2]} 65... f5 {[%clk 0:00:10.9]} 66. Bd2 {[%clk 0:00:07.1]} 66...
Kf6 {[%clk 0:00:11.1]} 67. Bc1 {[%clk 0:00:07.2]} 67... Kg6 {[%clk 0:00:11.3]}
68. Bd2 {[%clk 0:00:07.6]} 68... Kh5 {[%clk 0:00:11.7]} 69. Bc1 {[%clk
0:00:07.8]} 69... Be6 {[%clk 0:00:12.6]} 70. Bd2 {[%clk 0:00:08.2]} 70... Bd7
{[%clk 0:00:13]} 71. Bc1 {[%clk 0:00:06.5]} 71... Bc6 {[%clk 0:00:13.3]} 72. Bd2
{[%clk 0:00:06.9]} 72... Be4 {[%clk 0:00:13]} 73. Bc1 {[%clk 0:00:07.5]} 73...
Kg6 {[%clk 0:00:13.3]} 74. Bd2 {[%clk 0:00:08]} 74... Kf6 {[%clk 0:00:14.2]} 75.
Bc1 {[%clk 0:00:08.5]} 75... Ke5 {[%clk 0:00:14]} 76. Bxg5 {[%clk 0:00:08.4]}
76... f4+ {[%clk 0:00:14.4]} 77. Bxf4+ {[%clk 0:00:09.3]} 1/2-1/2

[Event "Late-Titled-Tuesday-Blitz-April-23-2024"]
[Site "Chess.com"]
[Date "2024.04.23"]
[Round "4"]
[White "kalinchick"]
[Black "LeninGuerra"]
[Result "1-0"]
[WhiteElo "2451"]
[BlackElo "2667"]
[TimeControl "180+1"]
[EndTime "14:42:01 PDT"]
[Termination "kalinchick won by resignation"]

1. d4 {[%clk 0:03:00.9]} 1... Nf6 {[%clk 0:01:56.4]} 2. c4 {[%clk 0:02:58.5]}
2... c5 {[%clk 0:01:56]} 3. dxc5 {[%clk 0:02:57.4]} 3... e6 {[%clk 0:01:55.1]}
4. Nf3 {[%clk 0:02:56.8]} 4... Bxc5 {[%clk 0:01:55]} 5. e3 {[%clk 0:02:57.5]}
5... O-O {[%clk 0:01:55.1]} 6. Be2 {[%clk 0:02:58.2]} 6... b6 {[%clk 0:01:55.5]}
7. O-O {[%clk 0:02:58.1]} 7... Bb7 {[%clk 0:01:55.8]} 8. b3 {[%clk 0:02:57.2]}
8... d5 {[%clk 0:01:55.5]} 9. Bb2 {[%clk 0:02:56.8]} 9... dxc4 {[%clk
0:01:55.9]} 10. Bxc4 {[%clk 0:02:56.1]} 10... Nbd7 {[%clk 0:01:51.3]} 11. Qe2
{[%clk 0:02:54]} 11... Qc7 {[%clk 0:01:51.4]} 12. Nbd2 {[%clk 0:02:49]} 12...
Rac8 {[%clk 0:01:50.4]} 13. Ba6 {[%clk 0:02:48.7]} 13... Rfd8 {[%clk 0:01:46.1]}
14. Bxb7 {[%clk 0:02:48.3]} 14... Qxb7 {[%clk 0:01:46.2]} 15. Nc4 {[%clk
0:02:47.3]} 15... Ne4 {[%clk 0:01:41.5]} 16. Nfe5 {[%clk 0:02:39.8]} 16... Nxe5
{[%clk 0:01:41.4]} 17. Nxe5 {[%clk 0:02:40.7]} 17... Rd2 {[%clk 0:01:34.3]} 18.
Qxd2 {[%clk 0:02:27]} 18... Nxd2 {[%clk 0:01:32.8]} 19. Rfd1 {[%clk 0:02:27.9]}
19... Bb4 {[%clk 0:00:53.3]} 20. a3 {[%clk 0:02:26.9]} 20... Rc2 {[%clk
0:00:53.4]} 21. axb4 {[%clk 0:02:27.1]} 21... Rxb2 {[%clk 0:00:53.5]} 22. Nc4
{[%clk 0:02:27.5]} 22... Rc2 {[%clk 0:00:45.3]} 23. Nxd2 {[%clk 0:02:23.7]}
23... h5 {[%clk 0:00:44.8]} 24. Nf3 {[%clk 0:02:18.5]} 24... Qc7 {[%clk
0:00:40.7]} 25. h4 {[%clk 0:02:13.1]} 25... g6 {[%clk 0:00:38.1]} 26. b5 {[%clk
0:01:54.8]} 26... e5 {[%clk 0:00:38.1]} 27. Rd5 {[%clk 0:01:50.9]} 27... e4
{[%clk 0:00:35.5]} 28. Ng5 {[%clk 0:01:48.7]} 28... Rc1+ {[%clk 0:00:27.6]} 29.
Rxc1 {[%clk 0:01:47.4]} 29... Qxc1+ {[%clk 0:00:27.9]} 30. Kh2 {[%clk 0:01:48]}
30... Qc7+ {[%clk 0:00:26.5]} 31. Kg1 {[%clk 0:01:41.4]} 31... Qc1+ {[%clk
0:00:26.9]} 32. Kh2 {[%clk 0:01:41.2]} 32... Qc2 {[%clk 0:00:27.5]} 33. Kg3
{[%clk 0:01:25.6]} 33... Qxb3 {[%clk 0:00:27]} 34. Re5 {[%clk 0:01:22.4]} 34...
Kg7 {[%clk 0:00:22.9]} 35. Re7 {[%clk 0:01:18.8]} 35... Qxb5 {[%clk 0:00:19.9]}
36. Rxf7+ {[%clk 0:01:16.4]} 36... Kg8 {[%clk 0:00:20.2]} 37. Rxa7 {[%clk
0:01:14]} 37... Qe5+ {[%clk 0:00:19.6]} 38. Kh3 {[%clk 0:01:13]} 38... b5 {[%clk
0:00:20]} 39. Ra8+ {[%clk 0:01:04.3]} 39... Kg7 {[%clk 0:00:19.7]} 40. Ra7+
{[%clk 0:01:03.8]} 40... Kf8 {[%clk 0:00:20]} 41. Rb7 {[%clk 0:00:57.8]} 41...
Qd5 {[%clk 0:00:18.1]} 42. Rb8+ {[%clk 0:00:51.9]} 42... Ke7 {[%clk 0:00:18.5]}
43. g3 {[%clk 0:00:50.4]} 43... Qf5+ {[%clk 0:00:18.4]} 44. Kg2 {[%clk
0:00:50.3]} 44... Kd7 {[%clk 0:00:18.8]} 45. Rb6 {[%clk 0:00:47.2]} 45... Kc7
{[%clk 0:00:18.6]} 46. Re6 {[%clk 0:00:46.9]} 46... b4 {[%clk 0:00:19]} 47. Rxe4
{[%clk 0:00:45.7]} 47... b3 {[%clk 0:00:19.3]} 48. Rb4 {[%clk 0:00:44.5]} 48...
Qd5+ {[%clk 0:00:17.3]} 49. Nf3 {[%clk 0:00:43.2]} 49... Kc6 {[%clk 0:00:16.8]}
50. Rd4 {[%clk 0:00:39.9]} 50... Qe6 {[%clk 0:00:15.1]} 51. Nd2 {[%clk 0:00:34]}
51... Kc5 {[%clk 0:00:13.5]} 52. Kf3 {[%clk 0:00:31.2]} 52... b2 {[%clk
0:00:13.6]} 53. Ke2 {[%clk 0:00:29.6]} 53... Qf5 {[%clk 0:00:13.2]} 54. Rd3
{[%clk 0:00:29]} 54... Qf6 {[%clk 0:00:12.9]} 55. Ne4+ {[%clk 0:00:26.9]} 55...
Kb4 {[%clk 0:00:12.7]} 56. Nxf6 {[%clk 0:00:22.6]} 56... b1=Q {[%clk 0:00:12.9]}
57. Nd5+ {[%clk 0:00:19.9]} 57... Kc4 {[%clk 0:00:12.3]} 58. Nf4 {[%clk
0:00:20.8]} 58... Qc2+ {[%clk 0:00:11.7]} 59. Kf3 {[%clk 0:00:21.1]} 59... Kc5
{[%clk 0:00:12.2]} 60. Rd4 {[%clk 0:00:20.9]} 60... Kc6 {[%clk 0:00:12.5]} 61.
Re4 {[%clk 0:00:19.2]} 61... Qd1+ {[%clk 0:00:12.4]} 62. Kg2 {[%clk 0:00:19]}
62... Qg4 {[%clk 0:00:13]} 63. Re6+ {[%clk 0:00:19.3]} 63... Kd7 {[%clk
0:00:12.8]} 64. Rxg6 {[%clk 0:00:20.2]} 64... Qf5 {[%clk 0:00:12.9]} 65. Rg5
{[%clk 0:00:20.5]} 65... Qe4+ {[%clk 0:00:13.4]} 66. Kh2 {[%clk 0:00:20.4]}
66... Qf3 {[%clk 0:00:13.8]} 67. Kg1 {[%clk 0:00:20.9]} 67... Qd1+ {[%clk
0:00:13.6]} 68. Kg2 {[%clk 0:00:21.4]} 68... Ke7 {[%clk 0:00:13]} 69. Rxh5
{[%clk 0:00:21.2]} 69... Kf6 {[%clk 0:00:13.3]} 70. Rd5 {[%clk 0:00:19.2]} 70...
Qe1 {[%clk 0:00:12.7]} 71. h5 {[%clk 0:00:18.8]} 71... Qb4 {[%clk 0:00:12.3]}
72. h6 {[%clk 0:00:18.9]} 72... Qb7 {[%clk 0:00:12.3]} 73. Kh2 {[%clk
0:00:17.7]} 73... Qh7 {[%clk 0:00:12.8]} 74. Rh5 {[%clk 0:00:17.8]} 74... Kf7
{[%clk 0:00:13.1]} 75. Rh4 {[%clk 0:00:16.8]} 75... Kf6 {[%clk 0:00:13.3]} 76.
Kg2 {[%clk 0:00:17.1]} 76... Kg5 {[%clk 0:00:13.6]} 77. Rh5+ {[%clk 0:00:16.7]}
77... Kf6 {[%clk 0:00:14]} 78. g4 {[%clk 0:00:17.2]} 78... Qe4+ {[%clk
0:00:14.2]} 79. Kg3 {[%clk 0:00:17.1]} 79... Qb1 {[%clk 0:00:14.5]} 80. h7
{[%clk 0:00:16.6]} 80... Qg1+ {[%clk 0:00:15.2]} 81. Kf3 {[%clk 0:00:16.8]}
81... Qd1+ {[%clk 0:00:14.2]} 82. Kg3 {[%clk 0:00:15.9]} 82... Qg1+ {[%clk
0:00:14.7]} 83. Ng2 {[%clk 0:00:16.6]} 83... Kg6 {[%clk 0:00:13.2]} 84. h8=Q
{[%clk 0:00:16.4]} 84... Qxg2+ {[%clk 0:00:13.9]} 85. Kxg2 {[%clk 0:00:15.4]}
1-0